Cogmind - Beta 14 @@@ ROGUE MODE // 2024.08.26 @ 15:20:27 Player: DZKane Result: Destroyed by H-88 Terminator with KE Penetrator Performance ------------- Evolutions (8) 4000 Regions Visited (21) 4200 Robots Destroyed (269) 1345 Value Destroyed (10666) 10666 Prototype IDs (39) 780 Alien Tech Used (0) 0 Bonus (3515) 3515 TOTAL SCORE: 24506 Bonus ------- High Alert Combat Kills 1099 Follower Combat Kills 1045 Entered Garrisons 200 Entered DSFs 500 Aligned with FarCom 300 Acquired ECA 300 Built Enhanced Grunts 300 Friendly Fire -229 Cogmind --------- Core Integrity 0/1450 Matter 228/300 Energy 99/100 System Corruption 14% Temperature Cool (0) Movement Core (50) Location -2/Research Parts ------- > --- POWER (2) -------- (None) > --- PROPULSION (4) --- (None) > --- UTILITY (10) ----- Encrypted Comm Array Improved Target Analyzer Advanced Target Analyzer Hacking Suite > --- WEAPON (7) ------- (None) > --- INVENTORY (5) ---- Light Antimatter Reactor Wheel Energy Well (350) Heavy Servo Lattice Force Lance Peak State ------------ > --- POWER ------------ Neutrino Core Light Antimatter Reactor > --- PROPULSION ------- Centrium Heavy Treads Armored Huge Wheel > --- UTILITY ---------- Advanced Cryofiber Web Experimental Heat Sink Huge Storage Unit Improved Signal Interpreter Improved Target Analyzer Improved Phase Shifter Centrium Medium Armor Plating Improved Dynamic Insulation System > --- WEAPON ----------- Phase Gun Dispersion Rifle Advanced Variable Charge Gun Coil Gun KE Penetrator KE Penetrator Railgun > --- INVENTORY -------- Neutrino Core Micro Antimatter Reactor Micro Antimatter Reactor Wheel Compact Wheel Compact Wheel Compact Wheel Advanced Cooling System Energy Well Encrypted Comm Array Launcher Guidance Computer Heavy Servo Lattice Advanced Transmission Jammer Hardened Heavy Armor Plating Improved Thermal Shield Improved Shock Absorption System Hacking Suite Hacking Suite Hacking Suite Gamma Rifle Coil Gun Coil Gun Tiamat Missile Launcher Force Lance [Rating: 142] Favorites ----------- Power Neutrino Core Engine Reinforced Deuterium Engine Power Core Neutrino Core Reactor Quantum Reactor Propulsion Compact Wheel Treads Centrium Heavy Treads Wheel Compact Wheel Hover Unit Cooled Gravmag System Utility Improved Signal Interpreter Device Experimental Heat Sink Storage Large Storage Unit Processor Improved Signal Interpreter Hackware Hacking Suite Protection Centrium Medium Armor Plating Weapon Gatling Laser Energy Gun Gatling Laser Ballistic Gun Improved Assault Rifle Ballistic Cannon AWS/Autocannon Launcher Heavy Rocket Launcher Piercing Weapon Lance Build | -11 -10 -10 -10 -9 -8 -7 -7 -7 -7 -6 -6 -6 -5 -5 -5 -5 -5 -4 -3 -3 -2 ------- Run | Yrd Mat Min Exi Min Mat Fac Was Fac DSF Fac Low Low Fac Ext Cet Arc Hub Fac Res Gar Res Slots Evolved 16 | . . . . . 4 2 . . . 2 . . 2 . . . . 2 2 . 2 Power 1 | . . . . . . . . . . 1 . . . . . . . . . . . Propulsion 2 | . . . . . . . . . . . . . . . . . . 2 . . . Utility 8 | . . . . . 2 1 . . . . . . 2 . . . . . 1 . 2 Weapon 5 | . . . . . 2 1 . . . 1 . . . . . . . . 1 . . Parts Attached 241 | 6 4 3 2 4 11 19 7 2 4 2 2 . 29 20 8 3 6 36 2 19 52 Power 31 | 1 . 2 . 1 1 2 . 1 1 1 . . 3 1 1 . . 7 . 3 6 Engine 11 | 1 . 1 . 1 1 2 . 1 1 1 . . 1 . . . . . . . 1 Core 10 | . . 1 . . . . . . . . . . 1 1 . . . 6 . 1 . Reactor 10 | . . . . . . . . . . . . . 1 . 1 . . 1 . 2 5 Propulsion 42 | 2 1 1 . 2 2 3 2 . . . . . 4 6 1 . 1 1 . 5 11 Treads 11 | . . . . . . . . . . . . . 4 3 1 . 1 . . 1 1 Leg . | . . . . . . . . . . . . . . . . . . . . . . Wheel 29 | 2 1 1 . 2 2 3 2 . . . . . . 1 . . . 1 . 4 10 Hover 2 | . . . . . . . . . . . . . . 2 . . . . . . . Flight . | . . . . . . . . . . . . . . . . . . . . . . Utility 84 | 1 3 . . 1 5 3 1 1 1 . . . 11 8 4 1 3 17 1 3 20 Device 44 | . 1 . . . . . . . . . . . 5 6 1 1 1 14 . 3 12 Storage 10 | 1 1 . . 1 1 . . 1 . . . . 1 1 . . 1 1 . . 1 Processor 9 | . 1 . . . 1 2 1 . . . . . 1 . . . . . 1 . 2 Hackware 4 | . . . . . . . . . . . . . 1 . . . . . . . 3 Protection 17 | . . . . . 3 1 . . 1 . . . 3 1 3 . 1 2 . . 2 Artifact . | . . . . . . . . . . . . . . . . . . . . . . Weapon 84 | 2 . . 2 . 3 11 4 . 2 1 2 . 11 5 2 2 2 11 1 8 15 Energy Gun 33 | . . . . . . . . . 1 . 1 . 7 3 1 2 2 8 . 5 3 Energy Cannon . | . . . . . . . . . . . . . . . . . . . . . . Ballistic Gun 39 | 2 . . 2 . 3 9 3 . . . . . 2 1 1 . . 3 1 3 9 Ballistic Cannon 3 | . . . . . . . 1 . 1 . . . . . . . . . . . 1 Launcher 7 | . . . . . . 2 . . . 1 1 . 1 1 . . . . . . 1 Special Weapon . | . . . . . . . . . . . . . . . . . . . . . . Impact Weapon . | . . . . . . . . . . . . . . . . . . . . . . Slashing Weapon . | . . . . . . . . . . . . . . . . . . . . . . Piercing Weapon 2 | . . . . . . . . . . . . . 1 . . . . . . . 1 Special Melee Weapon . | . . . . . . . . . . . . . . . . . . . . . . Unidentified Prototypes 16 | . . . 1 . 1 2 . . . . . . 4 2 4 . . . . . 2 Corrupted Parts 8 | . . . . . . . 2 . . . . . . . 4 . . . . 1 1 System Corruption 34 | . . . . . . . 12 . . . . . . . 16 . . . . 1 5 Parts Lost 91 | . . 2 . . . 1 5 . . . 1 . 1 4 . . 2 9 . 14 52 Power 10 | . . 1 . . . . . . . . . . . . . . . 2 . 2 5 Propulsion 16 | . . 1 . . . . 1 . . . 1 . . . . . 1 . . 2 10 Utility 27 | . . . . . . . . . . . . . 1 3 . . . 2 . 2 19 Weapon 38 | . . . . . . 1 4 . . . . . . 1 . . 1 5 . 8 18 Highest Loss Streak 32 | . . 1 . . . 1 5 . . . 1 . 1 2 . . 2 4 . 8 32 To Critical Strikes 1 | . . . . . . . . . . . . . . . . . 1 . . . . Average Slot Usage (%) 88 | . 91 98 100 100 97 99 60 61 73 73 73 73 77 93 94 94 94 88 90 89 77 Engine 4 | . 14 6 14 14 9 7 2 7 7 13 13 13 4 . . . . . . . . Core 3 | . . 6 . . . . . . . . . . 4 5 5 5 5 7 4 2 . Reactor 2 | . . . . . . . . . . . . . . 5 5 5 5 2 4 6 6 Treads 2 | . . . . . . . . . . . . . 4 5 5 5 5 5 4 3 3 Wheel 8 | . 28 28 28 28 17 15 10 15 15 13 7 6 1 2 . . . 5 4 4 7 Device 11 | . . . . . . . . . . . . . 10 23 17 21 22 21 19 20 16 Storage 6 | . 14 14 14 14 8 7 3 7 7 6 6 6 5 5 5 5 5 5 4 4 3 Processor 10 | . 5 14 14 14 17 23 17 15 15 13 13 13 10 5 5 5 5 5 9 9 7 Protection 4 | . . . . . 7 6 3 . 4 6 6 6 5 2 10 6 5 4 4 2 3 Energy Gun 12 | . . . . . . . . . . 6 9 13 11 20 23 23 23 25 19 16 13 Ballistic Gun 13 | . 28 28 28 28 36 37 19 15 14 6 6 6 3 4 5 5 5 5 14 16 9 Ballistic Cannon 1 | . . . . . . . 1 . 7 6 6 6 5 . . . . . . . . Piercing Weapon 1 | . . . . . . . . . . . . . 1 5 5 5 4 . . . . Peak Build Rating 142 | 6 9 11 16 17 31 43 43 18 61 68 68 67 106 107 115 119 119 131 140 142 140 Average Rating 78 | 4 7 9 13 16 28 36 27 17 55 64 67 67 90 92 110 115 117 124 139 130 105 On Entrance 61 | . 6 9 10 16 17 31 43 14 18 61 68 67 67 106 87 115 116 115 130 140 114 Naked Turns . | . . . . . . . . . . . . . . . . . . . . . . Heaviest Build 173 | 13 33 28 29 89 103 109 109 34 122 137 137 134 149 139 110 106 162 162 157 158 173 Greatest Support 80 | 26 32 32 32 32 32 32 26 32 32 32 32 16 70 70 80 80 80 80 28 80 60 Greatest Overweight (x) 9 | . 1 . . 2 3 4 6 1 3 4 8 8 9 6 5 1 2 5 5 5 6 Average Overweight (x) 2 | . . . . 1 2 3 1 1 2 4 7 8 3 3 1 1 1 4 5 3 3 Largest Inventory Capacity 25 | 8 15 15 15 25 25 25 25 15 15 15 15 15 15 15 15 15 25 25 25 25 25 Average Capacity 19 | 6 14 15 15 24 24 25 13 15 15 15 15 15 15 15 15 15 21 25 25 25 23 Most Carried 25 | 2 15 15 15 21 21 25 25 4 15 15 15 15 15 15 15 15 23 25 24 25 25 Average Carried 17 | . 4 14 14 18 16 21 13 3 11 14 14 15 14 14 14 14 18 24 23 23 19 Final Capacity 25 | 8 15 15 15 25 25 25 5 15 15 15 15 15 15 15 15 15 25 25 25 25 5 Final Carried 25 | 2 15 15 15 20 21 25 5 3 15 14 15 15 15 15 15 15 22 25 23 24 5 Class Distribution -------------------- 68% | Scavenger-Executioner 14% | Mutant 12% | Skirmisher 3% | Scavenger-Skirmisher Dominant Class ---------------- Mutant | -10/Materials Mutant | -10/Mines Mutant | -10/Exiles Mutant | -9/Mines Skirmisher | -8/Materials Skirmisher | -7/Factory Skirmisher | -7/Waste Skirmisher | -7/Factory Scavenger-Skirmisher | -7/DSF Scavenger-Executioner | -6/Factory Scavenger-Executioner | -6/Lower Caves Scavenger-Executioner | -6/Lower Caves Scavenger-Executioner | -5/Factory Scavenger-Executioner | -5/Extension Scavenger-Executioner | -5/Cetus Scavenger-Executioner | -5/Archives Scavenger-Executioner | -5/Hub_04(d) Scavenger-Executioner | -4/Factory Scavenger-Executioner | -3/Research Scavenger-Executioner | -3/Garrison Scavenger-Executioner | -2/Research Resources | -11 -10 -10 -10 -9 -8 -7 -7 -7 -7 -6 -6 -6 -5 -5 -5 -5 -5 -4 -3 -3 -2 ----------- Run | Yrd Mat Min Exi Min Mat Fac Was Fac DSF Fac Low Low Fac Ext Cet Arc Hub Fac Res Gar Res Matter Collected 5721 | 252 120 100 . 144 410 520 314 . 223 18 63 . 407 538 118 92 194 493 . 717 998 Remotely . | . . . . . . . . . . . . . . . . . . . . . . Salvage Created 13716 | 25 189 260 . 225 844 543 885 . 412 39 46 . 2222 1949 126 . 795 1255 . 1259 2642 Parts 564 | 1 12 15 . 15 41 41 2 . 27 . . . 92 83 1 . 33 45 . 40 116 Haulers Intercepted 15 | . 1 . . . 4 . . . . . . . 2 6 . . 1 . . . 1 Recyclers Shooed 8 | . . . . . . . . . . . . . 6 . . . . 1 . . 1 Parts Field Recycled . | . . . . . . . . . . . . . . . . . . . . . . Retrieved Matter . | . . . . . . . . . . . . . . . . . . . . . . Parts Self-Destructed 1 | . . . . . . . . . . . . 1 . . . . . . . . . Prevented . | . . . . . . . . . . . . . . . . . . . . . . Kills | -11 -10 -10 -10 -9 -8 -7 -7 -7 -7 -6 -6 -6 -5 -5 -5 -5 -5 -4 -3 -3 -2 ------- Run | Yrd Mat Min Exi Min Mat Fac Was Fac DSF Fac Low Low Fac Ext Cet Arc Hub Fac Res Gar Res Combat Hostiles Destroyed 167 | . 3 6 . 8 13 6 4 . 10 1 1 . 28 21 2 . 6 13 . 17 28 Guns 109 | . 3 6 . 8 13 6 . . . . . . 5 12 1 . 5 11 . 17 22 Cannons 46 | . . . . . . . 4 . 10 1 1 . 23 6 . . . . . . 1 AOE 5 | . . . . . . . . . . . . . . 3 . . . . . . 2 Classes Destroyed 21 | 1 3 . . 4 4 2 1 . 2 . 2 . . . . . 1 . . . 1 Worker 24 | . . . . 1 . 1 . . . . . . 4 5 . . 2 1 . . 10 Builder 20 | . . . . . . 3 . . . . . . . 10 . . . 1 . . 6 Tunneler 7 | 1 . . . . 1 1 . . . . . . 2 2 . . . . . . . Hauler 15 | . 1 . . . 4 . . . . . . . 2 6 . . 1 . . . 1 Recycler 25 | . . . . 1 1 2 . . . . . . 5 4 . . 3 3 . . 6 Mechanic 3 | . . . . . 1 . . . . . . . 1 . . . . . . . 1 Operator 1 | . 1 . . . . . . . . . . . . . . . . . . . . Watcher 7 | . . . . . 1 1 . . . . . . 3 2 . . . . . . . Swarmer 29 | . . . . 7 6 3 . . . . . . . 4 . . . . . . 9 Cutter 2 | . . . . . . . . . . . . . . . . . 2 . . . . Grunt 59 | . 3 6 . . 5 . . . 7 . . . 19 6 . . 1 . . 9 3 Sentry 13 | . . . . . 1 2 . . . 1 . . 3 4 . . . 2 . . . Demolisher 1 | . . . . 1 . . . . . . . . . . . . . . . . . Specialist 4 | . . . . . . . . . 2 . . . 2 . . . . . . . . Hunter 24 | . . . . . 1 . . . . . . . 1 4 . . 2 4 . 4 8 Programmer 18 | . . . . . . 1 . . . . . . 2 1 . . . 5 . 3 6 Heavy 5 | . . . . . . . . . 1 . . . 1 . . . 1 1 . . 1 Behemoth 5 | . . . . . . . . . . . 1 . . 2 . . . 1 . 1 . Compactor 4 | . . . . . . . 4 . . . . . . . . . . . . . . Cetus Guard 2 | . . . . . . . . . . . . . . . 2 . . . . . . Executioner 1 | . . . . . . . . . . . . . . . . . . . . . 1 Samaritan 1 | . . . . . . . . . . . 1 . . . . . . . . . . Best Kill Streak 27 | 1 2 4 . 5 8 3 4 . 4 1 1 . 8 17 2 . 8 5 . 8 27 Combat Bots Only 8 | . 2 4 . 4 4 3 4 . 4 1 1 . 4 7 2 . 6 3 . 8 8 Max Kills in Single Turn 5 | 1 1 1 . 2 2 3 1 . 1 1 1 . 2 3 1 . 2 2 . 1 5 Gunslinging 1 | . . . . . 1 . . . . . . . . 1 . . 1 1 . . 1 Exploded 2 | . . . . . . . . . . . . . . 1 . . . . . . 2 Melee . | . . . . . . . . . . . . . . . . . . . . . . Uniques/NPCs Destroyed . | . . . . . . . . . . . . . . . . . . . . . . Combat | -11 -10 -10 -10 -9 -8 -7 -7 -7 -7 -6 -6 -6 -5 -5 -5 -5 -5 -4 -3 -3 -2 -------- Run | Yrd Mat Min Exi Min Mat Fac Was Fac DSF Fac Low Low Fac Ext Cet Arc Hub Fac Res Gar Res Hostile Shots Fired 1298 | . 24 21 . 14 41 92 8 . 19 9 10 9 38 122 22 . 88 133 . 179 469 Missed 399 | . 8 3 . 3 10 35 . . 2 5 . 4 11 41 7 . 12 41 . 58 159 Damage Taken 18424 | . 202 234 . 136 338 513 352 . 318 34 271 113 905 1513 344 . 1471 2024 . 2362 7294 Core 2639 | . 84 70 . 40 42 73 222 . 68 . . . 17 143 13 . 74 204 . 139 1450 Absorbed by Shields 107 | . . . . . . . . . . . . . . 60 47 . . . . . . Reduced by Siege Mode 476 | . . . . . . . . . . . . . . . . . . 18 . 129 329 Ignored by Resistances 599 | . . . . . . . . . . . . . 8 127 17 . 35 100 . 195 117 Regen/Repaired (Parts) 489 | . . . . . 367 122 . . . . . . . . . . . . . . . Core Remaining (%) 76 | 100 . . . 22 92 . . . 48 . . 100 . . . . 75 82 . 89 . Volleys Fired 382 | 1 17 20 . 14 25 24 9 . 18 2 6 . 45 54 8 1 18 34 . 33 53 Largest 7 | 2 2 2 . 2 4 5 5 . 2 2 3 . 3 5 5 1 6 6 . 7 7 Hottest 471 | 40 40 40 . 46 92 115 122 . 46 103 183 . 184 353 353 35 427 471 . 440 408 Shots Fired 1625 | 2 34 40 . 28 100 99 60 . 54 9 22 4 166 215 30 2 97 173 . 203 287 Gun 1437 | 2 34 40 . 28 100 95 38 . 37 4 14 . 98 168 30 2 97 173 . 203 274 Cannon 168 | . . . . . . . 22 . 17 5 7 4 68 39 . . . . . . 6 Launcher 20 | . . . . . . 4 . . . . 1 . . 8 . . . . . . 7 Special . | . . . . . . . . . . . . . . . . . . . . . . Kinetic 909 | 2 34 40 . 28 100 95 60 . 54 7 13 4 97 66 7 1 19 37 . 113 132 Thermal 683 | . . . . . . . . . . 2 8 . 69 141 23 1 78 136 . 81 144 Explosive 16 | . . . . . . . . . . . 1 . . 8 . . . . . . 7 Electromagnetic 17 | . . . . . . 4 . . . . . . . . . . . . . 9 4 Robot Hit Streak 39 | 1 8 12 . 7 14 10 14 . 6 12 13 15 18 23 12 1 16 19 . 39 36 Robot Miss Streak 7 | . 2 1 . 1 2 5 2 . 6 1 3 . 5 7 7 1 7 4 . 6 4 Penetration Max 1 | . . . . . . . . . . . . . . . 1 . 1 1 . 1 1 Secondary Targets 39 | . 1 2 . 1 3 . . . . . . . 2 5 1 . 4 3 . 5 12 Max Gunslinging Chain 2 | . 1 1 . 1 1 . . . . . . . 1 2 1 . 2 1 . 1 1 Autonomous 163 | . . . . . . . 22 . 17 5 7 4 68 40 . . . . . . . Shots Hit Robots 1124 | 1 25 30 . 19 62 48 53 . 31 8 19 4 123 148 25 1 65 110 . 147 205 Core Hits 570 | 1 10 12 . 12 32 25 11 . 15 5 9 . 78 97 22 . 35 43 . 52 111 Critical Kills 18 | . . . . . 1 . . . . . . . 1 . . . 2 1 . 6 7 Critical Parts Destroyed 19 | . . . . . . . . . . . . . . . . . 3 . . 6 10 Critical Strikes 75 | . . . . . 1 . . . 2 . 2 . 10 3 . . 6 1 . 20 30 Burn 21 | . . . . . . . . . . . . . 1 . . . . . . 7 13 Destroy 39 | . . . . . 1 . . . . . . . 1 . . . 6 1 . 13 17 Blast 15 | . . . . . . . . . 2 . 2 . 8 3 . . . . . . . Melee Attacks 7 | . . . . . . . . . . . . . 3 2 1 . 1 . . . . Impact . | . . . . . . . . . . . . . . . . . . . . . . Slashing . | . . . . . . . . . . . . . . . . . . . . . . Piercing 7 | . . . . . . . . . . . . . 3 2 1 . 1 . . . . Sneak Attacks 3 | . . . . . . . . . . . . . . 2 . . 1 . . . . Combat Hostiles . | . . . . . . . . . . . . . . . . . . . . . . Follow-up Attacks . | . . . . . . . . . . . . . . . . . . . . . . Damage Inflicted 37463 | 24 261 322 . 334 997 777 2389 . 1354 337 908 342 6235 6972 739 29 1974 2870 . 3891 6708 Guns 22599 | 24 261 322 . 334 997 755 560 . 251 93 275 . 1633 2941 739 29 1892 2870 . 3891 4732 Cannons 11698 | . . . . . . . 1829 . 1103 244 597 331 4490 2644 . . . . . . 460 Explosions 2933 | . . . . . . 22 . . . . 36 . 112 1247 . . . . . . 1516 Melee 222 | . . . . . . . . . . . . . . 140 . . 82 . . . . Ramming 11 | . . . . . . . . . . . . 11 . . . . . . . . . Kinetic 21296 | 24 261 322 . 334 997 755 2389 . 1354 273 688 331 4793 2917 183 . 404 507 . 1820 2944 Thermal 12861 | . . . . . . . . . . 64 184 . 1330 2781 556 29 1488 2363 . 1848 2218 Explosive 2798 | . . . . . . . . . . . 36 . 112 1134 . . . . . . 1516 Electromagnetic 275 | . . . . . . 22 . . . . . . . . . . . . . 223 30 Impact . | . . . . . . . . . . . . . . . . . . . . . . Slashing . | . . . . . . . . . . . . . . . . . . . . . . Piercing 222 | . . . . . . . . . . . . . . 140 . . 82 . . . . Highest Corruption 34 | . . . . . . . 34 34 34 . . . 3 3 19 19 19 9 . 3 14 Average Corruption 9 | . . . . . . . 17 34 34 . . . 2 3 16 19 19 4 . 2 10 Corruption Purged . | . . . . . . . . . . . . . . . . . . . . . . Corruption Blocked . | . . . . . . . . . . . . . . . . . . . . . . Effects 199 | . . . . . . . 15 1 16 . . . 13 32 26 8 44 13 . 15 16 Message Errors 41 | . . . . . . . 8 . 3 . . . 2 3 5 1 11 4 . 2 2 Matter Fused 40 | . . . . . . . 1 1 1 . . . 1 7 7 1 9 3 . 3 6 Heat Flow Errors 18 | . . . . . . . 2 . 1 . . . 1 6 2 1 4 . . 1 . Energy Discharges 21 | . . . . . . . 1 . 4 . . . 2 2 3 2 4 . . 2 1 Parts Rejected 2 | . . . . . . . . . . . . . 1 . . . . 1 . . . Parts Fused 2 | . . . . . . . . . . . . . 1 . . . 1 . . . . Data Loss (minor) 29 | . . . . . . . 2 . 2 . . . 2 4 5 1 8 2 . 2 1 Data Loss (major) 12 | . . . . . . . . . 2 . . . 2 3 . . 1 2 . 1 1 Misfires 14 | . . . . . . . . . 2 . . . 1 6 1 1 2 . . 1 . Alerts 8 | . . . . . . . . . . . . . . . 2 1 2 1 . 2 . Misdirections 2 | . . . . . . . 1 . . . . . . . 1 . . . . . . Weapon Failures 10 | . . . . . . . . . 1 . . . . 1 . . 2 . . 1 5 Overload Shots 1 | . . . . . . . . . . . . . . . . . . 1 . . . Overflow Damage 1612 | . . . . . . . . . 42 54 18 59 668 534 . . 52 . . . 185 Projectiles 1236 | . . . . . . . . . 42 54 18 59 668 360 . . . . . . 35 Explosions 284 | . . . . . . . . . . . . . . 134 . . . . . . 150 Melee 92 | . . . . . . . . . . . . . . 40 . . 52 . . . . Knockbacks 34 | . . . . . . . . . 2 . . 3 19 4 . . . . . . 6 Impact . | . . . . . . . . . . . . . . . . . . . . . . Kinetic 30 | . . . . . . . . . 2 . . 3 16 4 . . . . . . 5 Secondary 4 | . . . . . . . . . . . . . 3 . . . . . . . 1 Self-Inflicted Damage 555 | . . . . . . . . . . . . 5 184 84 . . . . . . 282 Shots 9 | . . . . . . . . . . . . . 2 1 . . . . . . 6 Rammed 1 | . . . . . . . . . . . . 1 . . . . . . . . . Targets Rammed 1 | . . . . . . . . . . . . 1 . . . . . . . . . Kicked . | . . . . . . . . . . . . . . . . . . . . . . Crushed . | . . . . . . . . . . . . . . . . . . . . . . Highest Temperature 571 | . 15 30 . . 105 130 200 . 91 150 328 . 259 373 211 201 480 571 . 365 514 Average Temperature 106 | . 7 11 . . 31 46 77 . 28 78 158 . 92 75 105 129 183 178 . 173 157 Received Heat Transfer 1307 | . 111 138 . . 126 90 . . 126 12 24 9 90 171 13 . 36 36 . 220 105 Effects 12 | . . . . . . . . . . . . . . . . . 3 8 . 1 . Shutdowns 6 | . . . . . . . . . . . . . . . . . 3 3 . . . Interference 3 | . . . . . . . . . . . . . . . . . . 3 . . . Matter Decay 2 | . . . . . . . . . . . . . . . . . . 2 . . . Damage (minor) 1 | . . . . . . . . . . . . . . . . . . . . 1 . Siege Activations 13 | . . . . . . . . . . . . . . . . . 2 3 . 4 4 Total Turns 344 | . . . . . . . . . . . . . . . . . 10 41 . 129 164 Longest Duration 72 | . . . . . . . . . . . . . . . . . 9 21 . 56 72 Robots Corrupted . | . . . . . . . . . . . . . . . . . . . . . . Combat Hostiles . | . . . . . . . . . . . . . . . . . . . . . . Parts Fried 1 | . . . . . . . . . . . . . . . . . . . . 1 . Impact Corruptions 1 | . . . . . . . . . . . . . 1 . . . . . . . . Robots Melted 11 | . . . . . . . . . . . . . 1 2 1 . 1 3 . . 3 Combat Hostiles 7 | . . . . . . . . . . . . . . . 1 . 1 2 . . 3 Parts Melted 66 | . . . . . . . . . . . . . 4 2 2 . 13 12 . 13 20 Heat Transferred 24647 | . . . . . . . . . . 150 400 . 2928 5424 1275 37 2556 3562 . 2931 5384 Parts Sabotaged . | . . . . . . . . . . . . . . . . . . . . . . Parts Stolen . | . . . . . . . . . . . . . . . . . . . . . . Parts Stripped . | . . . . . . . . . . . . . . . . . . . . . . Power Chain Reactions . | . . . . . . . . . . . . . . . . . . . . . . Alert | -11 -10 -10 -10 -9 -8 -7 -7 -7 -7 -6 -6 -6 -5 -5 -5 -5 -5 -4 -3 -3 -2 ------- Run | Yrd Mat Min Exi Min Mat Fac Was Fac DSF Fac Low Low Fac Ext Cet Arc Hub Fac Res Gar Res Peak Influence 933 | 5 120 176 . 215 443 249 12 . 237 169 . . 485 802 434 287 933 524 204 472 656 Initial 347 | . 3 46 . . . 137 12 . 4 123 . . . 233 330 93 100 347 204 153 265 Average 291 | . 77 89 . 83 261 133 5 . 112 132 . . 152 526 363 254 593 388 204 325 436 Maximum Alert Level 3 | . . . . 1 2 1 . . 1 . . . 2 3 2 1 3 2 1 2 2 Low Security (%) 42 | 100 100 100 . 80 28 86 100 100 88 100 . . 78 . . 21 20 . . 18 . Level 1 25 | . . . . 19 65 13 . . 11 . . . 10 14 38 78 1 74 100 42 43 Level 2 26 | . . . . . 6 . . . . . . . 10 81 61 . 11 25 . 38 56 Level 3 5 | . . . . . . . . . . . . . . 4 . . 66 . . . . Level 4 . | . . . . . . . . . . . . . . . . . . . . . . Level 5 . | . . . . . . . . . . . . . . . . . . . . . . High Security . | . . . . . . . . . . . . . . . . . . . . . . Max Security . | . . . . . . . . . . . . . . . . . . . . . . Sterilizations 1 | . . . . . . . . . 1 . . . . . . . . . . . . Squads Dispatched 32 | . 1 . . . 1 2 . . 1 1 . 1 8 1 . . 8 5 . . 3 Investigation 3 | . 1 . . . . . . . . . . . 1 . . . . 1 . . . Extermination 6 | . . . . . . 1 . . . . . . 1 . . . 1 2 . . 1 Reinforcement 20 | . . . . . 1 1 . . 1 1 . . 4 1 . . 7 2 . . 2 Assault 1 | . . . . . . . . . . . . 1 . . . . . . . . . Garrison 2 | . . . . . . . . . . . . . 2 . . . . . . . . Intercept . | . . . . . . . . . . . . . . . . . . . . . . Searches Triggered . | . . . . . . . . . . . . . . . . . . . . . . Construction Impeded 4 | . . . . . . . . . . . . . 1 1 . . 1 . . . 1 Haulers Reinforced 2 | . . . . . . . . . . . . . 1 . . . . . . . 1 Active Scanning Responses . | . . . . . . . . . . . . . . . . . . . . . . Cargo Convoy Interrupts 1 | . . . . . . . . . . . . . . . . . . . . . 1 Stealth | -11 -10 -10 -10 -9 -8 -7 -7 -7 -7 -6 -6 -6 -5 -5 -5 -5 -5 -4 -3 -3 -2 --------- Run | Yrd Mat Min Exi Min Mat Fac Was Fac DSF Fac Low Low Fac Ext Cet Arc Hub Fac Res Gar Res Distress Signals 12 | . . . . . 2 . . . . . . . . 2 1 . 6 . . . 1 Communications Jammed 2 | . . . . . . . . . . . . . . . . . . . . . 2 Distress Signals . | . . . . . . . . . . . . . . . . . . . . . . Times Spotted 251 | . 4 7 . 15 23 7 7 . 10 2 1 10 29 25 7 6 17 17 . 17 47 Peak Tracking Total 11 | . 2 3 . 5 6 4 6 . 4 1 1 11 3 4 5 2 5 4 . 7 11 Tactical Retreats 10 | . . . . . . . 2 . . . . . 2 1 . . 1 . . . 4 Traps | -11 -10 -10 -10 -9 -8 -7 -7 -7 -7 -6 -6 -6 -5 -5 -5 -5 -5 -4 -3 -3 -2 ------- Run | Yrd Mat Min Exi Min Mat Fac Was Fac DSF Fac Low Low Fac Ext Cet Arc Hub Fac Res Gar Res Traps Triggered 16 | . . . . . 2 4 . . 2 2 . . 3 2 . . . 1 . . . Indirectly 3 | . . . . . . 3 . . . . . . . . . . . . . . . Trap Hack Attempts . | . . . . . . . . . . . . . . . . . . . . . . Triggered . | . . . . . . . . . . . . . . . . . . . . . . Disarmed . | . . . . . . . . . . . . . . . . . . . . . . Reprogrammed . | . . . . . . . . . . . . . . . . . . . . . . Reused 3 | . . . . 3 . . . . . . . . . . . . . . . . . Traps Extracted . | . . . . . . . . . . . . . . . . . . . . . . Installed 4 | . . . . 4 . . . . . . . . . . . . . . . . . Triggered 8 | . . . . 1 . . . . . . . 7 . . . . . . . . . Most Traps Carried 4 | . . . . 4 . . . . . . . . . . . . . . . . . Machines | -11 -10 -10 -10 -9 -8 -7 -7 -7 -7 -6 -6 -6 -5 -5 -5 -5 -5 -4 -3 -3 -2 ---------- Run | Yrd Mat Min Exi Min Mat Fac Was Fac DSF Fac Low Low Fac Ext Cet Arc Hub Fac Res Gar Res Machines Disabled 21 | . . . . . 2 . . . . . . . 6 4 . 1 3 3 . 2 . Max in Single Turn 3 | . . . . . 1 . . . . . . . 3 2 . 1 1 1 . 1 . Garrison Access 1 | . . . . . . . . . . . . . 1 . . . . . . . . Garrison Relay 1 | . . . . . . . . . . . . . . . . . . . . 1 . Energy Cycler 1 | . . . . . . . . . . . . . . 1 . . . . . . . Machines Repaired . | . . . . . . . . . . . . . . . . . . . . . . Machines Dismantled . | . . . . . . . . . . . . . . . . . . . . . . Machines Sabotaged . | . . . . . . . . . . . . . . . . . . . . . . Overloaded Fab Kills . | . . . . . . . . . . . . . . . . . . . . . . Hacking | -11 -10 -10 -10 -9 -8 -7 -7 -7 -7 -6 -6 -6 -5 -5 -5 -5 -5 -4 -3 -3 -2 --------- Run | Yrd Mat Min Exi Min Mat Fac Was Fac DSF Fac Low Low Fac Ext Cet Arc Hub Fac Res Gar Res Machines Accessed 26 | . 4 . 1 1 5 2 . 1 . 1 . . 4 2 1 . . 3 1 . . Terminals 18 | . 4 . . 1 3 . . 1 . 1 . . 3 2 1 . . 2 . . . Fabricators . | . . . . . . . . . . . . . . . . . . . . . . Repair Stations 3 | . . . . . 2 1 . . . . . . . . . . . . . . . Recycling Units . | . . . . . . . . . . . . . . . . . . . . . . Scanalyzers 2 | . . . . . . 1 . . . . . . . . . . . 1 . . . Garrison Access 2 | . . . . . . . . . . . . . 1 . . . . . 1 . . Total Hacks 55 | . 12 . 1 2 13 4 . 2 . 1 . . 7 3 3 . . 6 1 . . Successful 26 | . 7 . 1 . 7 2 . 1 . 1 . . 2 1 . . . 3 1 . . Failed 29 | . 5 . . 2 6 2 . 1 . . . . 5 2 3 . . 3 . . . Catastrophic 7 | . 1 . . . 1 1 . . . . . . 3 1 . . . . . . . Database Lockouts . | . . . . . . . . . . . . . . . . . . . . . . Manual 28 | . 9 . 1 4 6 . . . . . . . 3 . 1 . . 4 . . . Terminals 41 | . 12 . . 2 8 . . 2 . 1 . . 6 3 3 . . 4 . . . Fabricators . | . . . . . . . . . . . . . . . . . . . . . . Repair Stations 8 | . . . . . 5 3 . . . . . . . . . . . . . . . Recycling Units . | . . . . . . . . . . . . . . . . . . . . . . Scanalyzers 3 | . . . . . . 1 . . . . . . . . . . . 2 . . . Garrison Access 2 | . . . . . . . . . . . . . 1 . . . . . 1 . . Terminal Hacks 10 | . 5 . 1 . 1 . . 1 . 1 . . . 1 . . . . . . . Robot Analysis 5 | . 5 . . . . . . . . . . . . . . . . . . . . Open Door 1 | . . . . . . . . . . . . . . 1 . . . . . . . Open DSF 2 | . . . . . . . . 1 . 1 . . . . . . . . . . . Alert Level 1 | . . . . . 1 . . . . . . . . . . . . . . . . Derelict Proto ID Bank 1 | . . . 1 . . . . . . . . . . . . . . . . . . Fabricator Hacks . | . . . . . . . . . . . . . . . . . . . . . . Repair Station Hacks 6 | . . . . . 4 2 . . . . . . . . . . . . . . . Scan Component 3 | . . . . . 2 1 . . . . . . . . . . . . . . . Repair 3 | . . . . . 2 1 . . . . . . . . . . . . . . . Recycling Unit Hacks . | . . . . . . . . . . . . . . . . . . . . . . Scanalyzer 2 | . . . . . . . . . . . . . . . . . . 2 . . . Insert Component 1 | . . . . . . . . . . . . . . . . . . 1 . . . Analyze 1 | . . . . . . . . . . . . . . . . . . 1 . . . Garrison Access Hacks 2 | . . . . . . . . . . . . . 1 . . . . . 1 . . Unlock Access 1 | . . . . . . . . . . . . . . . . . . . 1 . . Seal Access 1 | . . . . . . . . . . . . . 1 . . . . . . . . Unauthorized Hacks 6 | . 2 . . . 2 . . . . . . . 1 . . . . 1 . . . Terminals 6 | . 2 . . . 2 . . . . . . . 1 . . . . 1 . . . Botnet 5 | . 2 . . . 1 . . . . . . . 1 . . . . 1 . . . Skim 1 | . . . . . 1 . . . . . . . . . . . . . . . . Fabricators . | . . . . . . . . . . . . . . . . . . . . . . Repair Stations . | . . . . . . . . . . . . . . . . . . . . . . Recycling Units . | . . . . . . . . . . . . . . . . . . . . . . Scanalyzers . | . . . . . . . . . . . . . . . . . . . . . . Garrison Access . | . . . . . . . . . . . . . . . . . . . . . . Data Cores Recovered 1 | . 1 . . . . . . . . . . . . . . . . . . . . Used . | . . . . . . . . . . . . . . . . . . . . . . Hacking Detections 24 | . 4 . . 2 5 2 . 1 . 1 . . 3 1 2 . . 3 . . . Full Trace Events 2 | . 1 . . . . . . . . . . . 1 . . . . . . . . Feedback Events . | . . . . . . . . . . . . . . . . . . . . . . Feedback Blocked . | . . . . . . . . . . . . . . . . . . . . . . Robot Schematics Acquired . | . . . . . . . . . . . . . . . . . . . . . . Robots Built . | . . . . . . . . . . . . . . . . . . . . . . Authchips . | . . . . . . . . . . . . . . . . . . . . . . Time . | . . . . . . . . . . . . . . . . . . . . . . Total Robot Build Rating . | . . . . . . . . . . . . . . . . . . . . . . Part Schematics Acquired 1 | . . . . . . . . . . . . . . . . . . 1 . . . Parts Built . | . . . . . . . . . . . . . . . . . . . . . . Authchips . | . . . . . . . . . . . . . . . . . . . . . . Time . | . . . . . . . . . . . . . . . . . . . . . . Total Part Build Rating . | . . . . . . . . . . . . . . . . . . . . . . Parts Repaired 3 | . . . . . 2 1 . . . . . . . . . . . . . . . Time 83 | . . . . . 64 19 . . . . . . . . . . . . . . . Parts Recycled . | . . . . . . . . . . . . . . . . . . . . . . Recycled Matter . | . . . . . . . . . . . . . . . . . . . . . . Retrieved Matter . | . . . . . . . . . . . . . . . . . . . . . . Retrieved Components . | . . . . . . . . . . . . . . . . . . . . . . Parts Scanalyzed 1 | . . . . . . . . . . . . . . . . . . 1 . . . Part Schematics Acquired 1 | . . . . . . . . . . . . . . . . . . 1 . . . Parts Damaged . | . . . . . . . . . . . . . . . . . . . . . . Bothacking | -11 -10 -10 -10 -9 -8 -7 -7 -7 -7 -6 -6 -6 -5 -5 -5 -5 -5 -4 -3 -3 -2 ------------ Run | Yrd Mat Min Exi Min Mat Fac Was Fac DSF Fac Low Low Fac Ext Cet Arc Hub Fac Res Gar Res Used RIF Installer . | . . . . . . . . . . . . . . . . . . . . . . Robots Hacked . | . . . . . . . . . . . . . . . . . . . . . . Non-combat . | . . . . . . . . . . . . . . . . . . . . . . Combat . | . . . . . . . . . . . . . . . . . . . . . . Robot Hacks Applied . | . . . . . . . . . . . . . . . . . . . . . . Relay Couplers Released 6 | . . . . . . . . . . . . . . . . . . . . 6 . Machine Destruction 3 | . . . . . . . . . . . . . . . . . . . . 3 . Programmers 3 | . . . . . . . . . . . . . . . . . . . . 3 . Fabnet Peak Effective % . | . . . . . . . . . . . . . . . . . . . . . . Robots Rewired . | . . . . . . . . . . . . . . . . . . . . . . Allies Hacked . | . . . . . . . . . . . . . . . . . . . . . . Hacks Repelled . | . . . . . . . . . . . . . . . . . . . . . . Allies | -11 -10 -10 -10 -9 -8 -7 -7 -7 -7 -6 -6 -6 -5 -5 -5 -5 -5 -4 -3 -3 -2 -------- Run | Yrd Mat Min Exi Min Mat Fac Was Fac DSF Fac Low Low Fac Ext Cet Arc Hub Fac Res Gar Res Total Allies 9 | . . . . 2 . . . . . . . . . 2 5 . . . . . . Largest Group 7 | . . . . 2 1 . . . . . . . . 2 7 6 6 . . . . Highest-Rated Group 627 | . . . . 47 31 . . . . . . . . 179 627 500 500 . . . . Highest-Rated Ally 159 | . . . . 31 31 . . . . . . . . 159 159 96 96 . . . . Total Orders . | . . . . . . . . . . . . . . . . . . . . . . Ally Attacks 164 | . . . . 8 22 . . . . . . . . 5 18 20 91 . . . . Total Damage 4802 | . . . . 82 255 . . . . . . . . 106 320 661 3378 . . . . Kills 32 | . . . . 4 2 . . . . . . . . . 3 4 19 . . . . Allies Corrupted . | . . . . . . . . . . . . . . . . . . . . . . Allies Melted 1 | . . . . . 1 . . . . . . . . . . . . . . . . Intel | -11 -10 -10 -10 -9 -8 -7 -7 -7 -7 -6 -6 -6 -5 -5 -5 -5 -5 -4 -3 -3 -2 ------- Run | Yrd Mat Min Exi Min Mat Fac Was Fac DSF Fac Low Low Fac Ext Cet Arc Hub Fac Res Gar Res Robot Analysis Total 5 | . 5 . . . . . . . . . . . . . . . . . . . . Derelict Logs Recovered 5 | . . 1 . 1 . . . . . . 2 1 . . . . . . . . . Drone Launches . | . . . . . . . . . . . . . . . . . . . . . . Drone Recoveries . | . . . . . . . . . . . . . . . . . . . . . . Exploration | -11 -10 -10 -10 -9 -8 -7 -7 -7 -7 -6 -6 -6 -5 -5 -5 -5 -5 -4 -3 -3 -2 ------------- Run | Yrd Mat Min Exi Min Mat Fac Was Fac DSF Fac Low Low Fac Ext Cet Arc Hub Fac Res Gar Res Turns Passed 12205 | 53 355 406 249 607 562 932 291 12 270 347 510 55 1741 1597 573 173 885 975 18 886 708 Spaces Moved 5380 | 44 269 332 245 325 236 424 197 9 128 190 235 25 572 671 179 69 251 422 9 327 221 Core 58 | 1 . . . . . . 40 . . . . . . . . . . . . . 17 Treads 1230 | . . . . . . . . . . . . . 415 216 155 69 251 2 . 117 5 Legs . | . . . . . . . . . . . . . . . . . . . . . . Wheels 4092 | 43 269 332 245 325 236 424 157 9 128 190 235 25 157 455 24 . . 420 9 210 199 Hover . | . . . . . . . . . . . . . . . . . . . . . . Flight . | . . . . . . . . . . . . . . . . . . . . . . Fastest Speed 50 | 50 90 100 100 100 130 145 50 115 130 160 160 220 205 175 175 240 240 160 175 123 50 Average Speed 173 | 88 104 100 100 125 142 146 106 115 140 160 206 220 247 199 231 240 284 174 175 194 163 Slowest Speed 410 | 90 105 100 100 130 145 150 190 115 145 160 220 220 320 410 240 240 320 240 175 240 330 Overloaded Moves . | . . . . . . . . . . . . . . . . . . . . . . Propulsion Burnouts . | . . . . . . . . . . . . . . . . . . . . . . Robots Hopped . | . . . . . . . . . . . . . . . . . . . . . . Cave-ins Triggered . | . . . . . . . . . . . . . . . . . . . . . . Exploration Rate (%) 40 | 4 34 73 67 54 32 10 72 . 93 8 45 9 18 70 61 74 26 14 . 39 8 Regions Visited 21 Branch Regions 9 Pre-discovered Areas 4 | . . . . 1 . . . . . . 2 1 . . . . . . . . . Known Exits Taken 11 | . . . . . . . . 1 . 1 1 1 1 1 1 1 1 1 1 . . Unknown Exits Taken 6 | 1 1 1 1 1 1 . . . . . . . . . . . . . . . . Scrap Searched 2 | . . . . 1 . . . . . . 1 . . . . . . . . . . Spaces Dug 26 | . . . . . . . . . . . . . 2 22 . . . 1 . 1 . Terrain Destroyed 253 | . . . . . . . 1 . 3 1 12 . 38 115 . . 11 5 . 17 50 Melee 2 | . . . . . . . . . . . . . 2 . . . . . . . . Projectile 61 | . . . . . . . 1 . 3 1 . . 11 12 . . 11 5 . 15 2 AOE 188 | . . . . . . . . . . . 12 . 25 103 . . . . . . 48 Terrain Rammed . | . . . . . . . . . . . . . . . . . . . . . . Walls Destroyed . | . . . . . . . . . . . . . . . . . . . . . . Machines Disabled . | . . . . . . . . . . . . . . . . . . . . . . Actions | -11 -10 -10 -10 -9 -8 -7 -7 -7 -7 -6 -6 -6 -5 -5 -5 -5 -5 -4 -3 -3 -2 --------- Run | Yrd Mat Min Exi Min Mat Fac Was Fac DSF Fac Low Low Fac Ext Cet Arc Hub Fac Res Gar Res Total 7432 | 53 313 372 250 496 396 683 257 10 194 231 248 25 833 791 317 78 367 570 11 485 452 Wait 1063 | 1 9 9 . 139 99 195 44 . . 19 1 . 132 4 109 . 80 34 . 89 99 Move 5361 | 43 268 331 244 324 235 424 196 8 127 189 234 25 571 670 178 68 250 421 9 325 221 Hop . | . . . . . . . . . . . . . . . . . . . . . . Pick Up 184 | 2 13 5 1 6 23 11 . . 25 2 3 . 18 17 3 2 9 18 . 14 12 Fast Attach 95 | 6 2 . . . 7 1 6 . 2 . 1 . 15 6 7 . 3 15 . 3 21 Attach 82 | . . 2 2 . 4 3 1 2 1 2 . . 4 10 . . 2 10 2 14 23 Detach 6 | . . . . . . . 1 . . . . . . 1 . . . . . 2 2 Swap 64 | . 2 1 . 4 . 15 . . 1 . 1 . 10 4 1 3 1 11 . 2 8 Drop 153 | . 2 4 3 5 3 10 . . 12 1 2 . 35 16 10 4 3 27 . 3 13 Fire 382 | 1 17 20 . 14 25 24 9 . 18 2 6 . 45 54 8 1 18 34 . 33 53 Melee 7 | . . . . . . . . . . . . . 3 2 1 . 1 . . . . Ram . | . . . . . . . . . . . . . . . . . . . . . . Kick . | . . . . . . . . . . . . . . . . . . . . . . Crush . | . . . . . . . . . . . . . . . . . . . . . . Escape Stasis 31 | . . . . . . . . . 8 16 . . . 7 . . . . . . . Rewire . | . . . . . . . . . . . . . . . . . . . . . . Trap 4 | . . . . 4 . . . . . . . . . . . . . . . . . Miscellaneous . | . . . . . . . . . . . . . . . . . . . . . . Route ------- -11/Scrapyard -10/Materials (discovered 2 exits: [*Mat] / [*Min]) -10/Mines (discovered 2 exits: [*Mat] / *Exi) -10/Exiles -9/Mines -8/Materials -7/Factory -7/Waste -7/Factory -7/DSF -6/Factory -6/Lower Caves -6/Lower Caves -5/Factory -5/Extension (discovered 2 exits: *Fac / *Cet) -5/Cetus -5/Archives (discovered 2 exits: *Fac / *Hub) -5/Hub_04(d) -4/Factory -3/Research -3/Garrison (discovered 2 exits: *Res x2) -2/Research History --------- Turn | Location | Event 37 | -11/Scrapyard | Discovered new exit (range 14) 54 | -11/Scrapyard | Entered Materials 139 | -10/Materials | Discovered new exit (range 6) 196 | -10/Materials | Discovered new exit (range 16) 302 | -10/Materials | Build established: Mutant 409 | -10/Materials | Entered Mines 465 | -10/Mines | Learned Materials emergency access door positions 503 | -10/Mines | Discovered new exit (range 8) 743 | -10/Mines | Core integrity fell below 50% 810 | -10/Mines | Deemed a non-threat by the Exiles lab entrance 811 | -10/Mines | Discovered new exit (range 5) 815 | -10/Mines | Entered Exiles 840 | -10/Exiles | Met 8R-AWN 856 | -10/Exiles | Met EX-HEX 886 | -10/Exiles | Met EX-BIN 900 | -10/Exiles | Aligned with FarCom system 901 | -10/Exiles | Given EX-Vault access code 924 | -10/Exiles | Opened EX-Vault 938 | -10/Exiles | Found AWS/Autocannon 960 | -10/Exiles | Warned to stay clear of 0b10 Research branches 970 | -10/Exiles | Exiles lab attacked by MAIN.C 1051 | -10/Exiles | Discovered new exit (range 14) 1064 | -10/Exiles | Left Exiles lab with AWS/Autocannon 1064 | -10/Exiles | Entered Mines 1090 | -9/Mines | Learned location of Recycling (-8) 1178 | -9/Mines | Found a hidden stash of uninstalled traps 1210 | -9/Mines | Assembled infested the area 1557 | -9/Mines | Discovered new exit (range 9) 1671 | -9/Mines | Entered Materials 1671 | -8/Materials | Accompanied by 1 ally 1671 | -8/Materials | Evolved 4 slots: Utility x2, Weapon x2 1676 | -8/Materials | Led the pair of lost Derelicts to an unsafe place 1921 | -8/Materials | Repaired Imp. Light Armor Plating 1961 | -8/Materials | Build established: Skirmisher 2172 | -8/Materials | Repaired Huge Storage Unit 2229 | -8/Materials | Discovered new exit (range 3) 2233 | -8/Materials | Entered Factory 2233 | -7/Factory | Evolved 2 slots: Utility x1, Weapon x1 3091 | -7/Factory | Discovered new exit (range 13) 3128 | -7/Factory | Repaired Imp. Light Armor Plating 3165 | -7/Factory | Sucked down chute 3165 | -7/Factory | Entered Waste 3180 | -7/Waste | EMP discharged 3222 | -7/Waste | Spotted C-40 Crusher 3240 | -7/Waste | Spotted C-40 Crusher 3241 | -7/Waste | Spotted C-40 Crusher 3275 | -7/Waste | Spotted C-40 Crusher 3280 | -7/Waste | EMP discharged 3280 | -7/Waste | System corruption reached 10% 3280 | -7/Waste | Crushed by Compactor (1 part destroyed, 2 dropped) 3285 | -7/Waste | Crushed by Compactor (1 part destroyed, 1 dropped) 3288 | -7/Waste | Crushed by Compactor (1 part destroyed, 1 dropped) 3291 | -7/Waste | Crushed by Compactor (1 part destroyed, 2 dropped) 3299 | -7/Waste | Spotted C-40 Crusher 3306 | -7/Waste | Spotted C-40 Crusher 3313 | -7/Waste | Crushed by Compactor (1 part destroyed, 2 dropped) 3333 | -7/Waste | Destroyed C-40 Crusher 3344 | -7/Waste | Lost 5 parts (1n4w) 3347 | -7/Waste | Destroyed C-40 Crusher 3349 | -7/Waste | Destroyed C-40 Crusher 3369 | -7/Waste | Destroyed C-40 Crusher 3380 | -7/Waste | EMP discharged 3385 | -7/Waste | System corruption reached 30% 3439 | -7/Waste | Discovered new exit (range 17) 3455 | -7/Waste | Identified exit to Factory 3456 | -7/Waste | Entered Factory 3468 | -7/Factory | Identified exit to DSF 3468 | -7/Factory | Entered DSF 3496 | -7/DSF | Additional patrols routed to DSF 3524 | -7/DSF | Core integrity fell below 50% 3607 | -7/DSF | Discovered new exit (range 15) 3713 | -7/DSF | Sterilization system engaged 3733 | -7/DSF | Ambient heat levels rising (+10) 3737 | -7/DSF | Identified exit to Factory 3738 | -7/DSF | Entered Factory 3738 | -6/Factory | Evolved 2 slots: Power x1, Weapon x1 3999 | -6/Factory | Discovered new exit (range 16) 4054 | -6/Factory | Build established: Scavenger-Executioner 4075 | -6/Factory | Identified exit to Lower Caves 4085 | -6/Factory | Entered Lower Caves 4107 | -6/Lower Caves | Met a Warlord Commander 4108 | -6/Lower Caves | Learned location of Warlord (-4) 4109 | -6/Lower Caves | Warlord Commander delivered Encrypted Comm Array 4115 | -6/Lower Caves | Found Encrypted Comm Array 4175 | -6/Lower Caves | Spotted B-75 Beast 4187 | -6/Lower Caves | Destroyed B-75 Beast 4461 | -6/Lower Caves | Learned Factory terminal intel 4569 | -6/Lower Caves | Discovered new exit (range 11) 4593 | -6/Lower Caves | Identified exit to Lower Caves 4595 | -6/Lower Caves | Entered another Lower Caves area 4635 | -6/Lower Caves | Discovered new exit (range 8) 4637 | -6/Lower Caves | Learned location of Extension (-5) 4646 | -6/Lower Caves | Attracted the attention of an 0b10 outpost 4648 | -6/Lower Caves | Identified exit to Factory 4650 | -6/Lower Caves | Entered Factory 4650 | -5/Factory | Evolved 2 slots: Utility x2 4651 | -5/Factory | Loaded intel: 28 terminal locations 5315 | -5/Factory | Garrison activated, responded to threat 5852 | -5/Factory | Garrison activated, responded to threat 6370 | -5/Factory | Discovered new exit (range 10) 6389 | -5/Factory | Identified exit to Extension 6391 | -5/Factory | Entered Extension 6466 | -5/Extension | Disrupted transfer network 6584 | -5/Extension | Spotted B-75 Beast 6600 | -5/Extension | Destroyed B-75 Beast 6622 | -5/Extension | Spotted B-75 Beast 6637 | -5/Extension | Destroyed B-75 Beast 6685 | -5/Extension | AWS/Autocannon suddenly broke down 6767 | -5/Extension | Destroyed 7 combat bots 7309 | -5/Extension | Discovered new exit (range 16) 7309 | -5/Extension | Discovered new exit (range 16) 7338 | -5/Extension | Identified exit to Factory 7347 | -5/Extension | Identified exit to Cetus 7556 | -5/Extension | Rescued a captive Derelict 7732 | -5/Extension | Energy Cycler disabled 7734 | -5/Extension | Rescued a captive Derelict 7737 | -5/Extension | Rescued a captive Derelict 7770 | -5/Extension | Rescued A7 7988 | -5/Extension | Entered Cetus 7988 | -5/Cetus | Accompanied by 2 allies (A7) 7993 | -5/Cetus | Acquired a Cetus Manufacturing Module code from A7 8011 | -5/Cetus | Spotted Cetus Guard 8011 | -5/Cetus | Spotted Cetus Guard 8013 | -5/Cetus | Spotted Cetus Guard 8013 | -5/Cetus | Spotted Cetus Guard 8021 | -5/Cetus | Destroyed Cetus Guard 8027 | -5/Cetus | Allies destroyed Cetus Guard 8035 | -5/Cetus | Destroyed Cetus Guard 8039 | -5/Cetus | Allies destroyed Cetus Guard 8066 | -5/Cetus | System corruption reached 10% 8324 | -5/Cetus | Started Cetus Manufacturing Module 8349 | -5/Cetus | Manufactured an Enhanced Grunt 8374 | -5/Cetus | Manufactured an Enhanced Grunt 8399 | -5/Cetus | Manufactured an Enhanced Grunt 8424 | -5/Cetus | Manufactured an Enhanced Grunt 8449 | -5/Cetus | Manufactured an Enhanced Grunt 8525 | -5/Cetus | Discovered new exit (range 15) 8559 | -5/Cetus | Identified exit to Archives 8561 | -5/Cetus | Entered Archives 8561 | -5/Archives | Accompanied by 6 allies 8610 | -5/Archives | Unable to access archive contents 8636 | -5/Archives | Discovered new exit (range 16) 8674 | -5/Archives | Unable to access archive contents 8679 | -5/Archives | Discovered exit to Factory (range 15) 8732 | -5/Archives | Identified exit to Hub_04(d) 8734 | -5/Archives | Entered Hub_04(d) 8734 | -5/Hub_04(d) | Accompanied by 6 allies 8939 | -5/Hub_04(d) | Discovered exit to Factory (range 15) 9257 | -5/Hub_04(d) | Spotted B-75 Beast 9278 | -5/Hub_04(d) | Allies destroyed B-75 Beast 9335 | -5/Hub_04(d) | Lost 5 allies 9619 | -5/Hub_04(d) | Entered Factory 9619 | -4/Factory | Evolved 2 slots: Propulsion x2 9791 | -4/Factory | Spotted B-86 Titan 9802 | -4/Factory | Destroyed B-86 Titan 9882 | -4/Factory | Lost 4 parts (1u3w) 10043 | -4/Factory | Found Unknown Device 10043 | -4/Factory | Identified Quantum Capacitor 10465 | -4/Factory | Lost 4 parts (1p1u2w) 10518 | -4/Factory | Discovered new exit (range 4) 10524 | -4/Factory | Identified exit to Research 10535 | -4/Factory | Found Heavy Servo Lattice 10594 | -4/Factory | Entered Research 10594 | -3/Research | Evolved 2 slots: Utility x1, Weapon x1 10612 | -3/Research | Identified exit to Garrison 10612 | -3/Research | Entered Garrison 10708 | -3/Garrison | Triggered checkpoint 10774 | -3/Garrison | Garrison Relay disabled 11043 | -3/Garrison | Spotted B-86 Titan 11048 | -3/Garrison | Triggered checkpoint 11099 | -3/Garrison | Destroyed B-86 Titan 11128 | -3/Garrison | Lost 8 parts (2p1n2u3w) 11131 | -3/Garrison | Destroyed 8 combat bots 11249 | -3/Garrison | Discovered new exit (range 10) 11268 | -3/Garrison | Identified exit to Research 11270 | -3/Garrison | Attempted to access garrison exit controls, blocked by remote lockdown 11338 | -3/Garrison | Triggered checkpoint 11389 | -3/Garrison | Lost 3 parts (1n2w) 11476 | -3/Garrison | Discovered exit to Research (range 14) 11498 | -3/Garrison | Entered Research 11498 | -2/Research | Evolved 2 slots: Utility x2 11911 | -2/Research | Destroyed 8 combat bots 11946 | -2/Research | Lost 3 parts (1u2w) 11993 | -2/Research | Cargo convoy interrupted 12010 | -2/Research | System corruption reached 10% 12032 | -2/Research | Spotted Executioner 12078 | -2/Research | Destroyed Executioner 12109 | -2/Research | Lost 32 parts (3p5n12u12w) 12141 | -2/Research | Core integrity fell below 50% 12187 | -2/Research | Core integrity fell below 20% 12206 | -2/Research | Destroyed by H-88 Terminator with KE Penetrator Last Messages --------------- 12178_ System corrupted: Matter fused (-8). 12179_ Slug penetrates Wall. 12186_ Slug penetrates Vacuum Chamber. 12189_ Slug penetrates Wall. 12193_ Adv. Heat Sink destroyed. 12194_ Slug penetrates Wall. 12194_ Hacking Suite destroyed. 12195_ Slug penetrates Wall. 12196_ Slug penetrates Door. 12196_ U-05 Engineer builds a Door. 12198_ Slug penetrates Wall. 12198_ Hacking Suite destroyed. 12200_ Wall collapses. 12200_ Slug penetrates Wall. 12201_ Wall collapses. 12201_ Slug penetrates Wall. 12201_ U-05 Engineer builds a Wall. 12201_ Slug penetrates Wall. 12205_ Dropped Mic. Antimatter Reactor. 12206_ Penetrated by Slug. Map ----- +----------------------------------------------------+ | ?????????????????????????????????????????????????? | | ?????????????????????????????????????????????????? | | ?????????????????????????????????????????????????? | | ?????????????????????????????????????????????????? | | ?????????????????????????????????????????????????? | | ?????????????????????????????????????????????????? | | ?????????????????????????????????????????????????? | | ?????????????????????????????????????????????????? | | ?????????????????????????????????????????????????? | | ?????????????????????????????????????????????????? | | ?????????????????????????????????????????????????? | | ?????????????????????????????????????????????????? | | ?????????????????????????????????????????????????? | | ?????????????????????????????????????????????????? | | ?????????????????#####???????#####???????????????? | | ?????????????????# """"""" #???????????????? | | ?????????????????# """"""" #???????????????? | | ?????????????????# """"""" #???????????????? | | ?????????????????# #???????????????? | | ?????????????????# #???????????????? | | ?????????????????# #???????????????? | | ?????????????????# t #???????????????? | | ??????????????????? ?????????????????? | | ????????????????????? ???????????????????? | | ?? ?????????????????? ?????????????????????? | | # ???#+##+############@#########??????????????? | | # ???# * ?????????? | | # ???# ?????????? | | # #??# ?????????? | | #??# h g ??????????? | | # ??##+######+##;##################??????????? | | # ??# hg #??????????????????????? | | # ##?# h uh #??????????????????????? | | # "#?# """ """ """ #??????????????????????? | | # "### """ """ """ #??????????????????????? | | # "# # """ """ """ #??????????????????????? | | # =## #!! #??????????????????????? | | # # #|![ #??????????????????????? | | # ############+#############??????????????????? | | # = =!%=*[=!! ????????????????? | | # ! %!! =|=! ?s??????????????? | | # =%! = %%=! ! p s????????????????? | | / | !%!!=!%= [%= p ?????????????????? | | #% ###########/###############?????????????????? | | # # % ??????????????????????????????? | | # ## # ????????????????????????????? | | %* # ???????????????????????????? | | # ####? ???????????????????????????? | | [ ###????? ??????????????????????????? | | |= #??????? #?????????????????????????? | +----------------------------------------------------+ Best States ------------- Heat Dissipation 149 Energy Generation 39 Energy Capacity 905 Matter Stores 300 Matter Capacity 300 Sight Range 18 Terrain Scan Density 10 Jamming Range 16 Base Temperature (-) 200 EM Shielding 3 Armor Coverage 2400 Resistance: TH 25 Resistance: EX 50 Resistance: EM 25 Point Defense Rating 240 Weapon Cycling 25 Phase Shifting 15 Evasion (%) 55 Targeting Accuracy 8 Target Analysis 11 Core Analysis 6 Recoil Reduction 8 Particle Charging 25 Offensive Hacking 30 Defensive Hacking 12 Item Schematics ----------------- Hrd. Heavy Armor Plating | -4/Factory | Scanalyzed Robot Schematics ------------------ None Fabricated ------------ Nothing Alien Tech Used ----------------- None Achievements -------------- Executioner Giant Slayer Challenges ------------ None Game ------ Seed BurstLinearLaser Manual? 0 Play Time 02:01:49 Cumulative 104.7 hours Start 2024.08.26 @ 13:07:47 End 2024.08.26 @ 15:20:27 Sessions 2 Manual Loads 0 Difficulty Rogue Special Mode None Game No. 76 Rogue 76 Adventurer 0 Explorer 0 Win Type - Total 2 Types 2/0/0/0/0/0/0/0/0 Lore% 50 Gallery% 56 Achievement% 49 Wizard Run 0 Options --------- Layout 1 ASCII 0 Keyboard 0 Movement Mouse Keybinds 0 Fullscreen 1 Font 24/Smallcaps Map View 50x35 Zoom Use 0% Tactical HUD 1 Map Filters NONE Filters NONE Steam 1 RUN: 4c5b6c1f-c194-4117-9c0d-5cd8fc20cffa